{"text_format":"1","workbook":"xlsx","n_sheets":1,"sheets":["Order Form"],"not_rendered":{"charts":0,"images":1,"macros":1,"external_links":0,"defined_names":2,"comments":0,"pivot_tables":0},"unopened":[],"bounds":{"document_bytes":16777216,"sheet_cells":100000,"rows_first":2000,"rows_last":500,"rows_between":2000,"halvings":0,"cell_chars":16384,"cell_head_chars":4096},"cells_cut":0,"cells_raw":0,"read":"whole","date_system":"1900"}

{"sheet":"Order Form","index":0,"n_rows":134,"n_cols":32,"rows_kept":134,"cut":false,"hidden":false,"merged":[[11,8,11,11],[12,8,12,11],[89,3,89,7],[88,3,88,7],[9,2,9,4],[10,2,10,4],[11,2,11,4],[12,2,12,4],[37,2,37,9],[32,2,32,9],[13,8,13,11],[9,8,9,11],[10,8,10,11],[54,2,54,9],[3,0,3,4],[5,8,5,11],[6,8,6,11],[7,8,7,11],[8,8,8,11],[5,2,5,4],[6,2,6,4],[7,2,7,4],[8,2,8,4],[6,0,6,1],[3,5,3,11],[130,3,130,4],[18,0,18,3],[13,2,13,4],[14,2,14,4],[15,2,15,4],[20,2,20,3],[21,2,21,3],[22,2,22,3],[23,2,23,3],[24,2,24,3],[25,2,25,3],[26,2,26,3],[27,2,27,3],[28,2,28,3],[129,1,129,5],[133,2,133,9],[131,3,131,8],[132,3,132,8],[112,2,112,9],[31,3,31,7],[127,3,127,4],[47,3,47,7],[62,2,62,9],[73,2,73,9],[83,2,83,9],[91,3,91,7],[94,2,94,9],[101,2,101,9],[126,3,126,4],[46,2,46,9],[90,3,90,7]]}
[null,null,null,null,null,null,null,null,null,null,null,null,null,null,null,null,null,null,null,null,null,null,null,null,null,null,null,"AB - Alberta"]
[null,null,null,null,null,null,null,null,null,null,null,null,null,null,null,null,null,null,null,null,null,null,null,null,null,null,null,"BC - British Columbia"]
[null,null,null,null,null,null,null,null,null,null,null,null,null,null,null,null,null,null,null,null,null,null,null,null,null,null,null,"MB - Manitoba"]
["ORDERED BY:",null,null,null,null,"SHIP TO:",null,null,null,null,null,null,null,null,null,null,null,null,null,null,null,null,null,null,null,null,null,"NB - New Brunswick"]
[null,null,null,null,null,null,null,null,null,null,null,null,null,null,null,null,null,null,null,null,null,null,null,null,null,null,null,"NL - Newfoundland and Labrador"]
["Date:",null,null,null,null,null,"Name:",null,null,null,null,null,null,null,null,null,null,null,null,null,null,null,null,null,null,null,null,"NS - Nova Scotia"]
["My Registered Director is:",null,null,null,null,null,"This address is a:",null,null,null,null,null,null,null,null,null,null,null,null,null,null,null,null,null,null,null,null,"NT - Northwest Territories"]
["Coordinator's Name:",null,null,null,null,null,"Street Address:",null,null,null,null,null,null,null,null,null,null,null,null,null,null,null,null,null,null,null,null,"NU - Nunavut"]
["Name of Site:",null,null,null,null,null,"City:",null,null,null,null,null,null,null,null,null,null,null,null,null,null,null,null,null,null,null,null,"ON - Ontario"]
["Street Address:",null,null,null,null,null,"Province:",null,null,null,null,null,null,null,null,null,null,null,null,null,null,null,null,null,null,null,null,"PE - Prince Edward Island"]
["City:",null,null,null,null,null,"Postal Code:",null,null,null,null,null,null,null,null,null,null,null,null,null,null,null,null,null,null,null,null,"QC - Quebec"]
["Province:",null,null,null,null,null,"Telephone:",null,null,null,null,null,null,null,null,null,null,null,null,null,null,null,null,null,null,null,null,"SK - Saskatchewan"]
["Postal Code:",null,null,null,null,null,"Fax:",null,null,null,null,null,null,null,null,null,null,null,null,null,null,null,null,null,null,null,null,"YK - Yukon"]
["Telephone:",null,null,null,null,null,"Email:"]
["Fax:",null,null,null,null,null,null,null,null,null,null,null,null,null,null,null,null,null,null,null,null,null,null,null,null,null,null,"Home"]
["Email:",null,null,null,null,null,null,null,null,null,null,null,null,null,null,null,null,null,null,null,null,null,null,null,null,null,null,"School"]
[null,null,null,null,null,null,null,null,null,null,null,null,null,null,null,null,null,null,null,null,null,null,null,null,null,null,null,"Agency"]
[null,null,null,null,null,null,null,null,null,null,null,null,null,null,null,null,null,null,null,null,null,null,null,null,"Other"]
["BILL TO: (if different from site information)"]
[]
["Name:"]
["Street Address:"]
["City:"]
["Province:"]
["Postal Code:"]
["Attention:"]
["Purchase Order:"]
["Telephone:"]
["Fax:"]
[]
[]
[null,null,"Quantity","Name of Item",null,null,null,null,"Price","Total"]
[null,null,"The following items are available to RAINBOWS REGISTERED DIRECTORS ONLY"]
[null,null,null,"Commitment Certificate",null,null,null,null,0.75,{"$f":"C34*I34","v":0}]
[null,null,null,"Training Day Participant Guide",null,null,null,null,3.25,{"$f":"C35*I35","v":0}]
[null,null,null,"Training Day Facilitator Certificate",null,null,null,null,1,{"$f":"C36*I36","v":0}]
[null,null,null,"USB with Forms &Training Day Presentation",null,null,null,null,30,{"$f":"C37*I37","v":0}]
[null,null,"ADMINISTRATION"]
[null,null,null,"Name Tag",null,null,null,null,0.25,{"$f":"C39*I39","v":0}]
[null,null,null,"Logo Sticker",null,null,null,null,0.25,0]
[null,null,null,"Parent Brochure",null,null,null,null,0.6,0]
[null,null,null,"Sunbeams Poster",null,null,null,null,0.7,0,null,null,null,null,null,null,null,null,null,null,null,null,null,null,null,null,null,null,null,"AB - Alberta"]
[null,null,null,"Rainbows Poster",null,null,null,null,0.7,0,null,null,null,null,null,null,null,null,null,null,null,null,null,null,null,null,null,null,null,"BC - British Columbia"]
[null,null,null,"Spectrum Poster",null,null,null,null,0.7,0,null,null,null,null,null,null,null,null,null,null,null,null,null,null,null,null,null,null,null,"MB - Manitoba"]
[null,null,null,"Policy & Guideline Handbook",null,null,null,null,3.25,0,null,null,null,null,null,null,null,null,null,null,null,null,null,null,null,null,null,null,null,"NB - New Brunswick"]
[null,null,null,"Site Support Handbook",null,null,null,null,5.25,0,null,null,null,null,null,null,null,null,null,null,null,null,null,null,null,null,null,null,null,"NL - Newfoundland and Labrador"]
[null,null,"COMMUNITY RESOURCES",null,null,null,null,null,null,null,null,null,null,null,null,null,null,null,null,null,null,null,null,null,null,null,null,null,null,"NS - Nova Scotia"]
[null,null,null,"Make a Difference with the Power of Commpassion - Book & DVD",null,null,null,null,20,{"$f":"C48*I48","v":0},null,null,null,null,null,null,null,null,null,null,null,null,null,null,null,null,null,null,null,"NT - Northwest Territories"]
[null,null,null,"Healing the Hurt, Restoring the Hope - Suzy Yehl Marta",null,null,null,null,20,0,null,null,null,null,null,null,null,null,null,null,null,null,null,null,null,null,null,null,null,"NU - Nunavut"]
[null,null,null,"Compassionate Companion",null,null,null,null,5,0,null,null,null,null,null,null,null,null,null,null,null,null,null,null,null,null,null,null,null,"ON - Ontario"]
[null,null,null,"“I Need Somebody” DVD ",null,null,null,null,15,0,null,null,null,null,null,null,null,null,null,null,null,null,null,null,null,null,null,null,null,"PE - Prince Edward Island"]
[null,null,null,"Silver Linings  Community Crisis Support Program  Ages 5-8",null,null,null,null,10,0,null,null,null,null,null,null,null,null,null,null,null,null,null,null,null,null,null,null,null,"QC - Quebec"]
[null,null,null,"Silver Linings  Community Crisis Support Program  Ages 9-13",null,null,null,null,10,0,null,null,null,null,null,null,null,null,null,null,null,null,null,null,null,null,null,null,null,"SK - Saskatchewan"]
[null,null,null,"Silver Linings  Community Crisis Support Program  Adolescents",null,null,null,null,10,0,null,null,null,null,null,null,null,null,null,null,null,null,null,null,null,null,null,null,null,"YT - Yukon"]
[null,null,"COORDINATOR MANUALS"]
[null,null,null,"SunBeams Pre-School Edition",null,null,null,null,14,{"$f":"C56*I56","v":0},null,null,null,null,null,null,null,null,null,null,null,null,null,null,null,null,null,null,null,"Home"]
[null,null,null,"Rainbows Elementary Edition - Religious",null,null,null,null,14,0,null,null,null,null,null,null,null,null,null,null,null,null,null,null,null,null,null,null,null,"School"]
[null,null,null,"Rainbows Elementary Edition - Secular",null,null,null,null,14,0]
[null,null,null,"Rainbows Celebrate Me Booklet for Coordinators",null,null,null,null,7,0,null,null,null,null,null,null,null,null,null,null,null,null,null,null,null,null,null,null,null,"Agency"]
[null,null,null,"Spectrum Adolescent Edition - Religious ",null,null,null,null,14,0,null,null,null,null,null,null,null,null,null,null,null,null,null,null,null,null,null,null,null,"Other"]
[null,null,null,"Spectrum Adolescent Edition - Secular ",null,null,null,null,14,0]
[null,null,null,"Kaleidoscope/Prism Adult Edition",null,null,null,null,14,0]
[null,null,"FACILITATOR MATERIALS (Listening & Component Module)"]
[null,null,null,"Listening Module",null,null,null,null,15.5,{"$f":"C64*I64","v":0}]
[null,null,null,"SunBeams",null,null,null,null,12.25,0]
[null,null,null,"Rainbows - Print copy",null,null,null,null,20,0]
[null,null,null,"Rainbows - Electronic copy",null,null,null,null,15,0]
[null,null,null,"Rainbows Religious Supplement",null,null,null,null,5,0]
[null,null,null,"Rainbows Religious Supplement - Electronic Copy",null,null,null,null,5,0]
[null,null,null,"Spectrum Adolescent Edition - Religious",null,null,null,null,18,0]
[null,null,null,"Spectrum Adolescent Edition - Secular ",null,null,null,null,18,0]
[null,null,null,"Kaleidoscope",null,null,null,null,15,0]
[null,null,null,"Prism",null,null,null,null,15,0]
[null,null,"SUNBEAMS MATERIALS"]
[null,null,null,"SunBeams Parent Guide",null,null,null,null,6,{"$f":"C75*I75","v":0}]
[null,null,null,"SunBeams Bingo Activity",null,null,null,null,15,0,null,null,null,null,null,null,null,null,null,null,null,null,null,null,null,null,null,null,null,"$1.00 - $50.00= $17.00",null,17]
[null,null,null,"Family Tree Activity",null,null,null,null,3.5,0,null,null,null,null,null,null,null,null,null,null,null,null,{"$f":"IF($J$125,\"<50.01\",AF76)","v":17},null,null,null,null,null,null,"$50.01 - $100.00 = $20.00",null,20]
[null,null,null,"Puppet Activity",null,null,null,null,6,0,null,null,null,null,null,null,null,null,null,null,null,null,null,null,null,null,null,null,null,"$200.01 - $300.00 = $27.00",null,27]
[null,null,null,"SunBeams Bear",null,null,null,null,9.5,0,null,null,null,null,null,null,null,null,null,null,null,null,null,null,null,null,null,null,null,"$300.001- $500.00 = $34.00",null,34]
[null,null,null,"Ferdinand the Eagle Activity Book",null,null,null,null,4.5,0,null,null,null,null,null,null,null,null,null,null,null,null,null,null,null,null,null,null,null,"$500.01 - $700.00 = $40.00",null,40]
[null,null,null,"SunBeams Childs Tote Bag",null,null,null,null,7,0,null,null,null,null,null,null,null,null,null,null,null,null,null,null,null,null,null,null,null,"$700.01 - $900.00 = $42.5",null,42.5]
[null,null,null,"Rainbow Music CD",null,null,null,null,10,0,null,null,null,null,null,null,null,null,null,null,null,null,null,null,null,null,null,null,null,"$900.01 - $1100 = 50.00",null,50]
[null,null,null,"SunBeams Completion Certificate",null,null,null,null,1,0,null,null,null,null,null,null,null,null,null,null,null,null,null,null,null,null,null,null,null,"$1100.01 - $1300 = $57.50",null,57.5]
[null,null,"JOURNALS",null,null,null,null,null,null,null,null,null,null,null,null,null,null,null,null,null,null,null,null,null,null,null,null,null,null,"$1300.01 - $1500.00 = $65.00",null,65]
[null,null,null,"Rainbows Lv. 1 Journal Gr 1-2",null,null,null,null,12,{"$f":"C85*I85","v":0}]
[null,null,null,"Rainbows Lv. 2 Journal Gr 3-4",null,null,null,null,12,0]
[null,null,null,"Rainbows Lv. 3 Journal Gr 5-6",null,null,null,null,12,0]
[null,null,null,"Rainbows Lv. 4 Journal Gr 7-8 ",null,null,null,null,12,0]
[null,null,null,"Spectrum Lv. ONE Gr 9-10 - Religious ",null,null,null,null,13.5,0]
[null,null,null,"Spectrum Lv. ONE Gr 9-10 - Secular",null,null,null,null,13.5,0]
[null,null,null,"Spectrum Lv. TWO Gr 11-12 - Religious",null,null,null,null,13.5,0]
[null,null,null,"Spectrum Lv. TWO Gr 11-12 - Secular",null,null,null,null,13.5,0]
[null,null,null,"Kaleidoscope Journal",null,null,null,null,18,0]
[null,null,null,"Prism Journal",null,null,null,null,18,0]
[null,null,"STORYBOOKS"]
[null,null,null,"About Death - Level 1 & 2 ",null,null,null,null,7,{"$f":"C96*I96","v":0}]
[null,null,null,"Being a Family - Level 1 & 2 ",null,null,null,null,7,0]
[null,null,null,"Feelings - Level 1 & 2 ",null,null,null,null,7,0]
[null,null,null,"It Takes Time - Level 1 & 2 ",null,null,null,null,7,0]
[null,null,null,"We're Doing It - Level 1 & 2 ",null,null,null,null,7,0]
[null,null,null,"Kristopher Finds a Rainbow (Supplemental Level 1& 2)",null,null,null,null,7,0]
[null,null,"ACTIVITIES"]
[null,null,null,"Park It Here - Level  2",null,null,null,null,30,{"$f":"C103*I103","v":0}]
[null,null,null,"A Way To Go - Level 4",null,null,null,null,25,0]
[null,null,null,"Feelings Toss (Rainbows Level 4 & Spectrum Level 1)",null,null,null,null,20,0]
[null,null,null,"Feelings Toss Score Pads (set of 2 pads)",null,null,null,null,4.5,0]
[null,null,null,"Peaks & Pits - Level 3 & 4 ",null,null,null,null,22.5,0]
[null,null,null,"Crossword Puzzle Board - Level 3 (set of 5 sheets)",null,null,null,null,2,0]
[null,null,null,"Spectrum of Fears (Spectrum Level One)",null,null,null,null,30,0]
[null,null,null,"Spectrum of Fears Score Pads (set of 2)",null,null,null,null,4.5,0]
[null,null,null,"Mountain of Change (Spectrum Level Two)",null,null,null,null,30,{"$f":"C111*I111","v":0}]
[null,null,null,"Whirlybird Activity",null,null,null,null,3.5,{"$f":"C112*I112","v":0}]
[null,null,"KEEPSAKES"]
[null,null,null,"I’m Thumbody Card - Rainbows Level 1 & 2 ",null,null,null,null,0.65,{"$f":"C114*I114","v":0}]
[null,null,null,"I Celebrate Me Card - Rainbows Level 3 & 4 ",null,null,null,null,0.65,0]
[null,null,null,"Declaration of Self Esteem - Spectrum Level 1&2 ",null,null,null,null,0.65,0]
[null,null,null,"My Choice Cards - Kaleidoscope & Prism",null,null,null,null,0.65,0]
[null,null,null,"RAINBOWS Lite",null,null,null,null,2,0]
[null,null,null,"RAINBOWS Pencil - 5 Pak",null,null,null,null,3,0]
[null,null,null,"RAINBOWS Notecards - (Pack of 4 blank cards)",null,null,null,null,5,0]
[null,null,null,"RAINBOWS Pen",null,null,null,null,2.5,0]
[null,null,null,"RAINBOWS USB (2 GB)",null,null,null,null,20,0]
[null,null,null,"RAINBOWS Bookmark",null,null,null,null,0.3,0]
[null,null,null,"RAINBOWS Foam Puzzle",null,null,null,null,3.5,0]
[null,null,null,null,null,null,null,null,"TOTAL",{"$f":"SUM(J34:J124)","v":0}]
[null,null,null,"SHIPPING AND HANDLING CHARGES"]
[null,null,null,"Click Below for Shipping Charge"]
[null,null,null,"$1.00 - $50.00= $17.00",null,null,null,"incl. shipping & handling (at left)",null,{"$f":"IF(J125<=50,AF76,IF(J125<=100,AF77,IF(J125<=200,#REF!,IF(J125<=300,AF78,IF(J125<=500,AF79,IF(J125<=700,AF80,IF(J125<=900,AF81,IF(J125<=1100,AF82,IF(J125<=1300,AF83,IF(139<1300.01,IF(J125<=1300.01,AF84)))))))))))","v":17}]
[null,null,null,null,null,null,null,"Applicable Taxes"]
[null,null,null,null,null,null,null,"GRAND TOTAL",null,{"$f":"SUM(J125+J128+J129)","v":17}]
[]
[null,null,null,"Invoice for payment enclosed with shipment"]
[null,null,null,"Prices subject to change without notice"]
[null,null,"Please allow minimum 3 weeks for processing/shipping"]